bitfinex-derivatives/quotes_BTCF0:USTF0_20250822
["timestamp","ask_amount","ask_price","bid_price","bid_amount"]
[1755874121831,1.11037739,116040.0,116030.0,0.13406385]
[1755874122034,1.11037739,116040.0,116030.0,0.48153385]
[1755874122245,1.19656129,116040.0,116030.0,0.52609862]
[1755874122445,1.11037739,116040.0,116030.0,0.52609862]
[1755874122634,0.86137739,116040.0,116030.0,0.52609862]
[1755874123035,0.66665739,116040.0,116030.0,0.52609862]
[1755874123346,0.70800739,116040.0,116030.0,0.46607477]
[1755874123644,0.79521739,116040.0,116030.0,0.46607477]
[1755874123842,0.86337739,116040.0,116030.0,0.46607477]
[1755874124144,0.33677,116040.0,116030.0,0.46607477]
[1755874124345,0.66865739,116040.0,116030.0,0.71607477]
[1755874124534,0.0032,116040.0,116030.0,0.80226657]
[1755874125339,0.0032,116040.0,116030.0,0.86229042]
[1755874125537,0.52980739,116040.0,116030.0,0.71607477]
[1755874125742,0.71000739,116040.0,116030.0,0.46607477]
[1755874126142,0.86337739,116040.0,116030.0,0.46607477]
[1755874126648,0.66865739,116040.0,116030.0,0.46607477]
[1755874126832,0.0032,116040.0,116030.0,0.46607477]
[1755874127032,0.18186,116040.0,116030.0,0.46607477]
[1755874127244,1.04476739,116040.0,116030.0,0.08960026]
[1755874127438,0.70846739,116040.0,116030.0,0.42389026]
[1755874127632,0.0032,116040.0,116030.0,0.42389026]
[1755874127841,0.79476739,116040.0,116030.0,0.42389026]
[1755874128440,0.0032,116040.0,116030.0,0.60646647]
[1755874128642,0.0032,116040.0,116030.0,0.60726647]
[1755874129338,0.0032,116040.0,116030.0,0.60646647]
[1755874129543,0.52980739,116040.0,116030.0,0.52027477]
[1755874129744,0.75629739,116040.0,116030.0,0.52027477]
[1755874130241,0.66999739,116040.0,116030.0,0.60646607]
[1755874130447,0.0032,116040.0,116030.0,0.60646607]
[1755874131539,0.0032,116040.0,116030.0,0.66728992]
[1755874132642,0.01950833,116050.0,116040.0,0.3118938]
[1755874133951,0.01926082,116100.0,116050.0,0.0861764]
[1755874134244,0.22649,116090.0,116080.0,0.22571]
[1755874134453,0.14019,116090.0,116080.0,0.22571]
[1755874134642,0.52660739,116090.0,116080.0,0.22571]
[1755874134840,0.52660739,116090.0,116080.0,0.10068682]
[1755874135040,0.63216821,116100.0,116080.0,0.34029251]
[1755874135343,0.63216821,116100.0,116090.0,0.22571]
[1755874135344,0.77435821,116100.0,116090.0,0.22571]
[1755874135538,0.77535821,116100.0,116090.0,0.23793219]
[1755874135739,0.77555821,116100.0,116090.0,0.23793219]
[1755874137047,0.77355821,116100.0,116090.0,0.01222219]
[1755874137247,0.77255821,116100.0,116090.0,0.01222219]
[1755874137641,0.77655821,116100.0,116090.0,0.01222219]
[1755874137845,0.77655821,116100.0,116090.0,0.08280896]
[1755874138049,0.77655821,116100.0,116090.0,0.23793219]
[1755874138244,0.78155821,116100.0,116090.0,0.01222219]
[1755874138446,1.5581656,116100.0,116090.0,0.01222219]
[1755874138655,1.6443048,116100.0,116090.0,0.01222219]
[1755874138854,1.6443048,116100.0,116080.0,0.01620682]
[1755874139147,0.75309739,116090.0,116080.0,0.01222219]
[1755874139351,0.75329739,116090.0,116080.0,0.01222219]
[1755874139548,0.75329739,116090.0,116080.0,0.15345219]
[1755874139949,0.75329739,116090.0,116080.0,0.01222219]
[1755874140155,0.22649,116070.0,116060.0,0.27064612]
[1755874140454,0.75329739,116070.0,116060.0,0.26902073]
[1755874140952,0.22669,116070.0,116060.0,0.12779073]
[1755874141153,0.75329739,116070.0,116060.0,0.12779073]
[1755874141456,0.75329739,116070.0,116060.0,0.35350073]
[1755874141645,0.22769,116070.0,116060.0,0.12779073]
[1755874141848,0.22769,116070.0,116050.0,0.06234494]
[1755874141849,0.0861689,116060.0,116050.0,0.06234494]
[1755874142145,0.16569,116040.0,116030.0,0.01741262]
[1755874142344,0.16589,116040.0,116030.0,0.01741262]
[1755874142549,0.69249739,116040.0,116030.0,0.01741262]
[1755874142747,0.69249739,116040.0,116030.0,0.15864262]
[1755874142947,0.69249739,116040.0,116030.0,0.24312262]
[1755874143547,0.69249739,116040.0,116030.0,0.01741262]
[1755874143751,0.94249739,116040.0,116030.0,0.31637885]
[1755874143952,0.94649739,116040.0,116030.0,0.31637885]
[1755874144347,0.95149739,116040.0,116030.0,0.29896623]
[1755874145752,0.95149739,116040.0,116030.0,0.36700371]
[1755874146252,0.95149739,116040.0,116030.0,0.14129371]
[1755874146552,0.95149739,116040.0,116030.0,0.28252371]
[1755874146752,0.42489,116040.0,116030.0,0.28252371]
[1755874146953,0.95149739,116040.0,116030.0,0.28252371]
[1755874147153,0.95149739,116040.0,116030.0,0.14129371]
[1755874148749,0.42489,116040.0,116030.0,0.14129371]
[1755874148954,0.95149739,116040.0,116030.0,0.14129371]
[1755874149646,0.95149739,116040.0,116030.0,0.34254756]
[1755874149849,0.95149739,116040.0,116030.0,0.76321876]
[1755874149850,0.0092,116040.0,116030.0,0.76321876]
[1755874150451,0.0092,116040.0,116030.0,0.70319491]
[1755874150955,0.0002,116040.0,116030.0,0.70319491]
[1755874151153,0.0072,116040.0,116030.0,0.76321876]
[1755874151748,0.0062,116040.0,116030.0,0.70399491]
[1755874151955,0.0062,116040.0,116030.0,0.77669824]
[1755874152257,0.0062,116040.0,116030.0,0.70319491]
[1755874152452,0.0062,116040.0,116030.0,0.83465377]
[1755874152851,0.0022,116040.0,116030.0,0.77545491]
[1755874153058,0.0052,116040.0,116030.0,0.84815824]
[1755874153360,0.0042,116040.0,116030.0,0.77545491]
[1755874153654,0.63322077,116060.0,116050.0,0.29717]
[1755874153957,0.19022338,116060.0,116050.0,0.29717]
[1755874154260,0.71683077,116060.0,116050.0,0.29717]
[1755874154460,0.71683077,116060.0,116050.0,0.35714808]
[1755874154757,0.71683077,116060.0,116050.0,0.13143808]
[1755874154959,0.96983077,116060.0,116050.0,0.05997808]
[1755874155162,0.52939228,116060.0,116050.0,0.05997808]
[1755874155352,1.05599967,116060.0,116050.0,0.05997808]
[1755874155752,0.1444063,116050.0,116040.0,0.05997808]
[1755874155953,0.83670369,116050.0,116040.0,0.05997808]
[1755874156357,0.3101038,116040.0,116030.0,0.1567402]
[1755874156558,0.87311119,116040.0,116030.0,0.08403687]
[1755874156858,0.16569,116010.0,116000.0,0.42286523]
[1755874157058,0.69229739,116010.0,116000.0,0.563472]
[1755874157866,0.69229739,116010.0,116000.0,0.5795353]
[1755874158160,0.69249739,116010.0,116000.0,0.50683197]
[1755874158354,0.16589,116010.0,116000.0,0.58591795]
[1755874158555,0.14039,116010.0,116000.0,0.51083197]
[1755874158758,0.0002,116010.0,116000.0,0.51083197]
[1755874159155,0.78304349,116010.0,116000.0,0.17654197]
[1755874159355,0.78224349,116010.0,116000.0,0.18016795]
[1755874159761,0.78224349,116010.0,116000.0,0.10508197]
[1755874160060,0.78224349,116010.0,116000.0,0.10308197]
[1755874160266,0.78224349,116010.0,116000.0,0.52224197]
[1755874160461,0.78224349,116010.0,116000.0,0.10308197]
[1755874161063,0.78224349,116010.0,116000.0,0.10608197]
[1755874161263,0.78224349,116010.0,116000.0,0.10408197]
[1755874161565,1.04897049,116010.0,116000.0,0.09220121]
[1755874161763,1.04977049,116010.0,116000.0,0.09220121]
[1755874161968,0.2554508,115990.0,115980.0,0.11890344]
[1755874162168,0.78225819,115990.0,115980.0,0.11890344]
[1755874162461,0.2757,115990.0,115980.0,0.43627878]
[1755874162659,0.80230739,115990.0,115980.0,0.43627878]
[1755874162963,1.03225819,115990.0,115980.0,0.43627878]
[1755874163359,0.78225819,115990.0,115980.0,0.43827878]
[1755874163660,0.0257,115990.0,115980.0,0.42116]
[1755874163859,0.0002,115990.0,115980.0,0.67216]
[1755874164166,0.0002,115990.0,115980.0,0.68860616]
[1755874164367,0.0002,115990.0,115980.0,0.77403436]
[1755874164766,0.0002,115990.0,115980.0,0.77483436]
[1755874164960,0.01767094,116000.0,115990.0,0.2219]
[1755874165163,0.01767094,116000.0,115990.0,0.48683466]
[1755874165852,0.54427833,116000.0,115990.0,0.48683466]
[1755874166258,0.79972163,116000.0,115990.0,0.48683466]
[1755874166464,0.79972163,116000.0,115990.0,0.48783466]
[1755874166654,0.79972163,116000.0,115990.0,0.40643466]
[1755874166858,1.04972163,116000.0,115990.0,0.21835466]
[1755874167055,1.57632902,116000.0,115990.0,0.06867466]
[1755874167566,1.57632902,116000.0,115970.0,0.20969732]
[1755874167567,0.1117282,115980.0,115970.0,0.20969732]
[1755874167767,0.2562656,115970.0,115960.0,0.13012435]
[1755874167963,0.2562656,115970.0,115950.0,0.15016223]
[1755874167964,0.1125431,115960.0,115950.0,0.06049955]
[1755874168165,0.0862654,115930.0,115920.0,0.33286466]
[1755874168360,0.78230279,115930.0,115920.0,0.10178466]
[1755874168667,0.16923,115920.0,115910.0,0.14968]
[1755874168862,0.78231019,115920.0,115910.0,0.14968]
[1755874169064,0.69603739,115920.0,115910.0,0.16589347]
[1755874169259,0.69603739,115920.0,115910.0,0.43537347]
[1755874169571,0.55230739,115920.0,115910.0,0.50411645]
[1755874169967,0.52680739,115920.0,115910.0,0.51511645]
[1755874170169,0.0002,115920.0,115910.0,0.76511645]
[1755874170362,0.55230739,115920.0,115910.0,0.02721347]
[1755874170561,0.25,115920.0,115900.0,0.25048758]
[1755874170875,0.0862671,115930.0,115910.0,0.15668]
[1755874171058,0.0862729,115920.0,115910.0,0.27254]
[1755874171264,0.0862729,115920.0,115910.0,0.007]
[1755874171467,0.4800029,115920.0,115910.0,0.011]
[1755874171672,0.4800029,115920.0,115910.0,0.19908]
[1755874171970,0.39373,115920.0,115910.0,0.08322]
[1755874172268,0.52660739,115920.0,115910.0,0.45826]
[1755874172471,0.52660739,115920.0,115910.0,0.68016]
[1755874172669,0.78031029,115920.0,115910.0,0.261]
[1755874172861,1.03031029,115920.0,115910.0,0.007]
[1755874173059,1.03031029,115920.0,115910.0,0.004]
[1755874173270,0.5037029,115920.0,115910.0,0.004]
[1755874173469,1.03031029,115920.0,115910.0,0.004]
[1755874173668,0.41743,115920.0,115910.0,0.15368]
[1755874173867,0.16763,115920.0,115910.0,0.42416]
[1755874174071,0.52680739,115920.0,115910.0,0.42816]
[1755874174271,0.16763,115920.0,115910.0,0.42816]
[1755874174572,0.69423739,115920.0,115910.0,0.42316]
[1755874174768,0.16963,115920.0,115910.0,0.5094403]
[1755874174967,0.69623739,115920.0,115910.0,0.3073]
[1755874175167,1.03251029,115920.0,115910.0,0.004]
[1755874176671,0.16743,115910.0,115900.0,0.10724026]
[1755874176976,0.16763,115910.0,115900.0,0.45418026]
[1755874177178,0.69423739,115910.0,115900.0,0.45418026]
[1755874177873,0.69523739,115910.0,115900.0,0.45418026]
[1755874178270,0.0012,115910.0,115900.0,0.79046806]
[1755874178473,0.0022,115910.0,115900.0,0.79126806]
[1755874178675,0.52660739,115930.0,115920.0,0.41916]
[1755874178867,0.55550739,115930.0,115920.0,0.41916]
[1755874179067,0.17263,115930.0,115920.0,0.41916]
[1755874179268,0.53180739,115930.0,115920.0,0.41916]
[1755874179568,0.52660739,115930.0,115920.0,0.66916]
[1755874179880,0.78550289,115930.0,115920.0,0.39968]
[1755874180070,0.78550289,115930.0,115920.0,0.33776]
[1755874180071,1.03550289,115930.0,115920.0,0.33776]
[1755874180372,0.2589029,115920.0,115910.0,0.21967222]
[1755874180576,0.78551029,115920.0,115910.0,0.21967222]
[1755874181068,1.03551029,115920.0,115910.0,0.06999222]
[1755874181271,0.17263,115910.0,115900.0,0.37278026]
[1755874181566,0.78551779,115910.0,115900.0,0.18470026]
[1755874181770,0.69923739,115910.0,115900.0,0.37278026]
[1755874181963,0.69923739,115910.0,115900.0,0.18470026]
[1755874181964,0.78571769,115910.0,115900.0,0.18470026]
[1755874182576,0.69943739,115910.0,115900.0,0.37278026]
[1755874182973,0.78571779,115910.0,115900.0,0.25692026]
[1755874183275,0.78571779,115910.0,115900.0,0.28502026]
[1755874183472,0.69943739,115910.0,115890.0,0.23108]
[1755874183673,0.0863094,115880.0,115860.0,0.30606663]
[1755874183873,0.69923739,115870.0,115860.0,0.50969711]
[1755874184065,0.52660739,115870.0,115860.0,0.43471048]
[1755874184265,0.52660739,115870.0,115860.0,0.50969711]
[1755874184466,0.52660739,115870.0,115860.0,0.43471048]
[1755874184675,0.52860739,115870.0,115860.0,0.43471048]
[1755874184869,0.52660739,115870.0,115860.0,0.68471048]
[1755874185068,0.16743,115880.0,115860.0,0.69371048]
[1755874185263,0.0237,115880.0,115870.0,0.34694]
[1755874185566,0.52660739,115880.0,115870.0,0.41916]
[1755874185973,0.2589275,115890.0,115880.0,0.33776]
[1755874186172,0.78553489,115890.0,115880.0,0.33776]
[1755874186373,0.2589275,115890.0,115880.0,0.41916]
[1755874186568,0.69923739,115890.0,115880.0,0.41916]
[1755874186774,0.55550739,115890.0,115880.0,0.41916]
[1755874186975,0.53200739,115890.0,115880.0,0.48963959]
[1755874187174,0.0002,115890.0,115880.0,0.73963959]
[1755874187370,0.52880739,115890.0,115880.0,0.73963959]
[1755874187575,0.55250739,115890.0,115880.0,0.73963959]
[1755874188073,0.70300739,115890.0,115880.0,0.73963959]
[1755874188577,0.78930269,115890.0,115880.0,0.54237959]
[1755874188976,0.78930269,115890.0,115880.0,0.73363959]
[1755874189272,0.0032,115890.0,115880.0,0.73363959]
[1755874189467,0.52880739,115890.0,115880.0,0.73499825]
[1755874189879,0.52780739,115890.0,115880.0,0.73499825]
[1755874190071,0.0032,115890.0,115880.0,0.73499825]
[1755874190272,0.52980739,115890.0,115880.0,0.73499825]
[1755874190480,0.52880739,115890.0,115880.0,0.73546573]
[1755874190682,0.0022,115890.0,115880.0,0.73546573]
[1755874190883,0.52880739,115890.0,115880.0,0.73546573]
[1755874191184,0.0022,115890.0,115880.0,0.89755506]
[1755874191480,0.001,115890.0,115880.0,0.48142843]
[1755874191679,0.01728912,115900.0,115880.0,0.4816755]
[1755874191878,0.01728912,115900.0,115890.0,0.1575152]
[1755874192177,0.01728912,115900.0,115890.0,0.65288]
[1755874192480,0.54389651,115900.0,115890.0,0.65288]
[1755874192782,0.54389651,115900.0,115890.0,0.65495321]
[1755874193177,0.54489651,115900.0,115890.0,0.65495321]
[1755874193574,0.54389651,115900.0,115890.0,0.65495321]
[1755874193776,0.54589651,115900.0,115890.0,0.65495321]
[1755874194184,0.63497431,115900.0,115890.0,0.47993984]
[1755874194383,0.54868651,115900.0,115890.0,0.72993984]
[1755874194574,0.54888651,115900.0,115890.0,0.65495321]
[1755874194773,0.63963431,115900.0,115890.0,0.65495321]
[1755874194972,0.19268912,115900.0,115890.0,0.65495321]
[1755874195174,0.54609651,115900.0,115890.0,0.65495321]
[1755874195374,0.01948912,115900.0,115890.0,0.72993984]
[1755874196183,0.01948912,115900.0,115890.0,0.65495321]
[1755874196378,0.2622667,115920.0,115890.0,0.65495321]
[1755874196379,0.0237,115920.0,115890.0,0.40602321]
[1755874196683,0.62551181,115930.0,115920.0,0.40288]
[1755874196876,0.54389181,115930.0,115920.0,0.40288]
[1755874197178,0.54389181,115930.0,115920.0,0.65288]
[1755874197179,0.01728442,115930.0,115920.0,0.65288]
[1755874197384,0.54389181,115930.0,115920.0,0.65288]
[1755874197589,0.58623883,115930.0,115920.0,0.65501061]
[1755874197777,0.73184433,115930.0,115920.0,0.65501061]
[1755874197977,0.88134433,115930.0,115920.0,0.65501061]
[1755874198286,0.88634433,115930.0,115920.0,0.65501061]
[1755874198785,0.23783144,115930.0,115920.0,0.65501061]
[1755874198978,0.80007883,115930.0,115920.0,0.65501061]
[1755874199877,0.56895883,115930.0,115920.0,0.65501061]
[1755874200084,0.59343883,115930.0,115920.0,0.65501061]
[1755874200278,0.59343883,115930.0,115920.0,0.66968664]
[1755874200279,0.02448442,115930.0,115920.0,0.66968664]
[1755874200581,0.02448442,115930.0,115920.0,0.75595924]
[1755874200777,0.19076894,115960.0,115920.0,0.75675924]
[1755874200979,0.03763092,115960.0,115950.0,0.40288]
[1755874201176,0.63041923,115960.0,115950.0,0.40288]
[1755874201378,0.75199923,115960.0,115950.0,0.40594439]
[1755874201580,0.59093633,115960.0,115950.0,0.40594439]
[1755874201775,0.66575633,115960.0,115950.0,0.40594439]
[1755874201982,0.01756894,115960.0,115950.0,0.40594439]
[1755874202178,0.54417633,115960.0,115950.0,0.40594439]
[1755874202486,0.54417633,115960.0,115950.0,0.40613483]
[1755874202680,0.92519923,115960.0,115950.0,0.29760483]
[1755874202887,0.92519923,115960.0,115950.0,0.40613483]
[1755874203091,0.83895633,115960.0,115950.0,0.40613483]
[1755874203588,0.16884894,115960.0,115950.0,0.40613483]
[1755874203787,0.69645633,115960.0,115950.0,0.40613483]
[1755874203987,0.16984894,115960.0,115950.0,0.40613483]
[1755874204180,0.69165633,115960.0,115950.0,0.40613483]
[1755874204375,0.69165633,115960.0,115950.0,0.47461261]
[1755874204581,0.54637633,115960.0,115950.0,0.47461261]
[1755874204882,0.87119633,115960.0,115950.0,0.36608261]
[1755874205182,1.09115633,115960.0,115950.0,0.47461261]
[1755874205582,1.09115633,115960.0,115950.0,0.22224392]
[1755874205783,1.17739913,115960.0,115950.0,0.22224392]
[1755874205979,0.84115633,115960.0,115950.0,0.47461261]
[1755874206283,0.16504894,115960.0,115950.0,0.47461261]
[1755874206489,0.01976894,115960.0,115950.0,0.72461261]
[1755874206690,0.01976894,115960.0,115950.0,0.73472389]
[1755874206890,0.0022,115960.0,115950.0,0.73472389]
[1755874207682,0.0022,115960.0,115950.0,0.73552389]
[1755874207883,0.55030739,115990.0,115980.0,0.15395]
[1755874208187,0.52660739,115990.0,115980.0,0.40288]
[1755874208378,0.52660739,115990.0,115980.0,0.40613483]
[1755874208578,0.76643833,116000.0,115980.0,0.32447483]
[1755874208892,0.71157176,116000.0,115990.0,0.40288]
[1755874209285,0.01767094,116000.0,115990.0,0.65368]
[1755874209591,0.29698,116030.0,116020.0,0.40288]
[1755874209791,0.84339211,116030.0,116020.0,0.22313]
[1755874209985,0.84339211,116030.0,116020.0,0.1404]
[1755874210185,0.62123211,116030.0,116010.0,0.33166]
[1755874210494,0.62123211,116030.0,116010.0,0.40288]
[1755874210495,0.82033256,116020.0,116010.0,0.40288]
[1755874210682,0.01980472,116020.0,116010.0,0.41724576]
[1755874210886,0.52660739,116030.0,116010.0,0.41724576]
[1755874211092,0.5466002,116030.0,116020.0,0.40288]
[1755874211390,0.6214202,116030.0,116020.0,0.40288]
[1755874211586,0.0012,116030.0,116020.0,0.40288]
[1755874211783,0.54422773,116050.0,116030.0,0.33166]
[1755874211987,0.56400481,116050.0,116040.0,0.40288]
[1755874212189,0.83508481,116050.0,116040.0,0.40288]
[1755874212696,1.6355422,116050.0,116040.0,0.1404]
[1755874212990,0.29493,116040.0,116030.0,0.24893]
[1755874213193,0.84131447,116040.0,116030.0,0.40288]
[1755874213589,0.84131447,116040.0,116030.0,0.1404]
[1755874213991,0.29493,116030.0,116020.0,0.1404]
[1755874214290,0.82153739,116030.0,116020.0,0.1404]
[1755874215080,0.07061,116020.0,116010.0,0.48577012]
[1755874215394,0.59721739,116020.0,116010.0,0.48577012]
[1755874215786,0.52780739,116030.0,116020.0,0.40288]
[1755874216282,0.0012,116030.0,116020.0,0.40288]
[1755874216482,0.04796,116030.0,116020.0,0.40288]
[1755874216889,0.52780739,116030.0,116020.0,0.40288]
[1755874217092,0.52680739,116030.0,116020.0,0.40288]
[1755874217685,0.57194739,116030.0,116020.0,0.40288]
[1755874218495,0.0022,116030.0,116020.0,0.65288]
[1755874218789,0.0022,116030.0,116020.0,0.65368]
[1755874218989,0.01762034,116050.0,116040.0,0.0693]
[1755874219289,0.01762034,116050.0,116040.0,0.40617]
[1755874219492,0.01762034,116050.0,116040.0,0.65617]
[1755874220496,0.54822773,116050.0,116040.0,0.65617]
[1755874220688,0.06696034,116050.0,116040.0,0.65617]
[1755874220891,0.59356773,116050.0,116040.0,0.65617]
[1755874221190,0.13951034,116050.0,116040.0,0.65617]
[1755874221395,0.54822773,116050.0,116040.0,0.65617]
[1755874221694,0.02162034,116050.0,116040.0,0.65617]
[1755874222191,0.02162034,116050.0,116040.0,0.65697]
[1755874222391,0.52660739,116080.0,116070.0,0.0693]
[1755874222692,0.11008165,116080.0,116070.0,0.40617]
[1755874222887,0.85603904,116080.0,116070.0,0.29932]
[1755874223088,0.32943165,116080.0,116070.0,0.40617]
[1755874223288,0.04567,116070.0,116060.0,0.21411]
[1755874223496,0.85603904,116070.0,116060.0,0.32096]
[1755874223889,0.32943165,116070.0,116060.0,0.40617]
[1755874224090,0.01971165,116070.0,116060.0,0.40617]
[1755874224293,0.54631904,116070.0,116060.0,0.40617]
[1755874224595,0.54631904,116070.0,116060.0,0.42025189]
[1755874224998,0.55031904,116070.0,116060.0,0.42025189]
[1755874225691,0.71220904,116070.0,116060.0,0.42025189]
[1755874225896,1.11023904,116070.0,116060.0,0.01408189]
[1755874226100,1.11023904,116070.0,116050.0,0.14481]
[1755874226299,1.11023904,116070.0,116050.0,0.32096]
[1755874226300,0.83632739,116060.0,116050.0,0.32096]
[1755874226495,0.30992,116060.0,116050.0,0.32096]
[1755874226798,0.30992,116060.0,116050.0,0.40617]
[1755874226799,0.0002,116060.0,116050.0,0.40617]
[1755874226998,0.0002,116060.0,116050.0,0.42032531]
[1755874227196,0.72919589,116060.0,116050.0,0.42032531]
[1755874227397,0.7945924,116060.0,116050.0,0.42032531]
[1755874227583,1.19242264,116060.0,116050.0,0.15896531]
[1755874227784,1.19242264,116060.0,116050.0,0.01415531]
[1755874228003,0.3958959,116050.0,116040.0,0.21411]
[1755874228198,0.3959032,116040.0,116030.0,0.21411]
[1755874228493,0.92271059,116040.0,116030.0,0.42041827]
[1755874228697,0.86299059,116040.0,116030.0,0.42041827]
[1755874228895,0.77680739,116040.0,116030.0,0.42041827]
[1755874229205,0.0002,116040.0,116030.0,0.67041827]
[1755874229587,0.0863834,116040.0,116030.0,0.42041827]
[1755874229788,0.65769079,116040.0,116030.0,0.42041827]
[1755874230095,0.94247816,116040.0,116030.0,0.42041827]
[1755874230295,1.19247816,116040.0,116030.0,0.01424827]
[1755874230495,0.157711,116030.0,116020.0,0.23323224]
[1755874230695,0.92271839,116030.0,116020.0,0.16393224]
[1755874230897,1.19249097,116030.0,116020.0,0.01912224]
[1755874231095,2.17621097,116030.0,116020.0,0.01912224]
[1755874231503,0.0861984,116020.0,116010.0,0.06857335]
[1755874231691,0.0862058,116010.0,116000.0,0.14481]
[1755874231896,0.0862058,116010.0,116000.0,0.40617]
[1755874231897,0.1730058,116010.0,116000.0,0.40617]
[1755874232093,0.61101319,116010.0,116000.0,0.42080838]
[1755874232291,0.87281579,116020.0,116010.0,0.40617]
[1755874232497,0.1983784,116020.0,116010.0,0.40617]
[1755874232799,0.67931579,116020.0,116010.0,0.40617]
[1755874233000,0.1117784,116020.0,116010.0,0.47646061]
[1755874233304,0.87281129,116030.0,116020.0,0.40617]
[1755874233498,0.3462084,116020.0,116010.0,0.14481]
[1755874233803,0.3462158,116010.0,116000.0,0.33559838]
[1755874233994,0.87282319,116010.0,116000.0,0.33559838]
[1755874234194,0.63838899,116020.0,116010.0,0.40617]
[1755874234402,0.63838899,116020.0,116010.0,0.40817]
[1755874234698,0.1935,116040.0,116030.0,0.08521]
[1755874234898,0.01978092,116040.0,116030.0,0.0693]
[1755874235095,0.01978092,116040.0,116030.0,0.3193]
[1755874235498,0.01978092,116040.0,116030.0,0.65617]
[1755874235695,0.01998092,116040.0,116030.0,0.743161]
[1755874236094,0.10376125,116060.0,116030.0,0.65697]
[1755874236297,0.10376125,116060.0,116050.0,0.17615]
[1755874236298,0.10982195,116060.0,116050.0,0.17615]
[1755874236708,0.27029065,116060.0,116050.0,0.40617]
[1755874237007,0.66812065,116060.0,116050.0,0.21411]
[1755874237196,0.1604761,116050.0,116040.0,0.32096]
[1755874237505,0.87120023,116050.0,116040.0,0.40617]
[1755874237700,1.12120023,116050.0,116040.0,0.40617]
[1755874237906,1.03502413,116050.0,116040.0,0.40617]
[1755874238209,0.79496413,116050.0,116040.0,0.40617]
[1755874238399,0.72066413,116050.0,116040.0,0.40617]
[1755874238901,0.252,116050.0,116040.0,0.40617]
[1755874239097,0.002,116050.0,116040.0,0.65617]
[1755874239296,0.0022,116050.0,116040.0,0.65617]
[1755874239496,0.0022,116050.0,116040.0,0.65697]
[1755874240095,0.01759195,116060.0,116040.0,0.4062835]
[1755874240300,0.01759195,116060.0,116050.0,0.40617]
[1755874241600,0.58246481,116080.0,116070.0,0.40617]
[1755874242197,0.01737068,116080.0,116070.0,0.65617]
[1755874242805,0.01737068,116080.0,116070.0,0.72463897]
[1755874243395,0.01737068,116080.0,116070.0,0.7389796]
[1755874243597,0.22415438,116080.0,116070.0,0.7389796]
[1755874244001,0.41765438,116080.0,116070.0,0.7389796]
[1755874244197,1.13931851,116080.0,116070.0,0.2969196]
[1755874244402,1.13931851,116080.0,116070.0,0.0828096]
[1755874244704,0.4000911,116070.0,116060.0,0.32096]
[1755874245005,0.4002911,116070.0,116060.0,0.40617]
[1755874245600,0.0002,116070.0,116060.0,0.42048903]
[1755874245794,0.0863611,116070.0,116060.0,0.67048903]
[1755874245998,0.6502911,116070.0,116060.0,0.42048903]
[1755874246203,0.6502911,116070.0,116060.0,0.15912903]
[1755874246407,1.12095523,116070.0,116060.0,0.01431903]
[1755874246595,0.4001032,116060.0,116050.0,0.14481]
[1755874246795,0.87096733,116060.0,116050.0,0.25166]
[1755874247004,0.86996733,116060.0,116050.0,0.32096]
[1755874247307,0.0002,116060.0,116050.0,0.66790915]
[1755874247910,0.0002,116060.0,116050.0,0.75408475]
[1755874248204,0.79205393,116090.0,116050.0,0.75788475]
[1755874248402,0.42965329,116090.0,116080.0,0.39559]
[1755874248597,0.90031742,116090.0,116080.0,0.39559]
[1755874248905,0.90031742,116090.0,116070.0,0.0828]
[1755874249207,0.88135753,116080.0,116070.0,0.39559]
[1755874249403,0.47066413,116080.0,116070.0,0.46334209]
[1755874249708,0.0861535,116080.0,116070.0,0.46334209]
[1755874250016,0.01755277,116100.0,116080.0,0.39559]
[1755874250204,0.82751341,116110.0,116100.0,0.32434]
[1755874250408,0.13523,116110.0,116100.0,0.39559]
[1755874250609,0.07930584,116120.0,116110.0,0.24154]
[1755874250908,0.07930584,116120.0,116110.0,0.39559]
[1755874251098,0.26733136,116120.0,116110.0,0.39559]
[1755874251296,0.35345516,116120.0,116110.0,0.39559]
[1755874251510,0.48888516,116120.0,116110.0,0.39559]
[1755874251695,1.10318929,116120.0,116110.0,0.13892]
[1755874252211,0.253761,116110.0,116100.0,0.25767]
[1755874252399,0.86826513,116110.0,116100.0,0.25767]
[1755874252802,0.86826513,116110.0,116100.0,0.39659]
[1755874253005,0.80316513,116110.0,116100.0,0.39659]
[1755874253200,0.0002,116110.0,116100.0,0.39659]
[1755874253403,0.0002,116110.0,116100.0,0.64659]
[1755874253612,0.0002,116110.0,116100.0,0.7335284]
[1755874253801,0.0002,116110.0,116100.0,0.64559]
[1755874254111,0.01733136,116120.0,116110.0,0.39639]
[1755874254300,0.27108486,116120.0,116110.0,0.39639]
[1755874254501,0.27108486,116120.0,116110.0,0.39559]
[1755874254703,0.74174899,116120.0,116110.0,0.39559]
[1755874255305,1.13538899,116120.0,116110.0,0.39559]
[1755874255505,1.13538899,116120.0,116100.0,0.0848]
[1755874255506,0.086131,116110.0,116100.0,0.0848]
[1755874255701,0.86806513,116110.0,116100.0,0.22172]
[1755874255909,0.117531,116110.0,116100.0,0.39559]
[1755874256113,0.117531,116110.0,116080.0,0.0008]
[1755874256114,0.38232886,116120.0,116110.0,0.39559]
[1755874256314,0.908369,116120.0,116110.0,0.29297]
[1755874256616,0.908369,116120.0,116110.0,0.39559]
[1755874257112,0.908369,116120.0,116110.0,0.31279]
[1755874257307,0.3650058,116110.0,116100.0,0.39559]
[1755874257521,0.3650058,116110.0,116100.0,0.39659]
[1755874257522,0.3652058,116110.0,116100.0,0.39659]
[1755874257714,0.0863358,116110.0,116100.0,0.39659]
[1755874257907,0.0002,116110.0,116100.0,0.39659]
[1755874258101,0.0002,116110.0,116100.0,0.39559]
[1755874258315,0.59134014,116110.0,116100.0,0.39559]
[1755874258514,0.52624014,116110.0,116100.0,0.39559]
[1755874258716,0.52624014,116110.0,116100.0,0.39659]
[1755874259011,0.0002,116110.0,116100.0,0.41005335]
[1755874259218,0.0002,116110.0,116100.0,0.66005335]
[1755874259915,0.61237154,116110.0,116100.0,0.64659]
[1755874260109,0.77900154,116110.0,116100.0,0.64659]
[1755874260316,0.3966014,116110.0,116100.0,0.39659]
[1755874260517,0.92264154,116110.0,116100.0,0.39559]
[1755874260717,1.17264154,116110.0,116100.0,0.002]
[1755874261112,0.0861461,116090.0,116080.0,0.19903933]
[1755874261325,0.92265624,116090.0,116080.0,0.21017]
[1755874261510,0.52624014,116090.0,116080.0,0.39559]
[1755874261818,0.52624014,116090.0,116080.0,0.64559]
[1755874262021,0.61238624,116090.0,116080.0,0.64559]
[1755874262519,1.17265624,116090.0,116080.0,0.29797]
[1755874262717,1.17265624,116090.0,116080.0,0.31779]